[Event "Titled Tuesday Blitz August 09 Early 2022"]
[White "Lagno, Kateryna"]
[Black "Williams, Simon K"]
[WhiteFideId "14109336"]
[BlackFideId "404454"]
[WhiteElo "2522"]
[BlackElo "2468"]
[Result "1-0"]
[Round "04"]
[TimeControl "180+1"]
[Date "2022.08.09"]
[WhiteClock "0:00:19"]
[BlackClock "0:00:07"]

1. e4 {[%clk 0:03:00]}  e6 {[%clk 0:02:55]} 2. d4 {[%clk 0:03:00]}  b6 {[%clk 0:02:54]} 3. Bd3 {[%clk 0:02:59]}  Bb7 {[%clk 0:02:54]} 4. Nf3 {[%clk 0:02:58]}  d6 {[%clk 0:02:52]} 5. O-O {[%clk 0:02:56]}  Nd7 {[%clk 0:02:52]} 6. c4 {[%clk 0:02:53]}  g6 {[%clk 0:02:50]} 7. Bg5 {[%clk 0:02:51]}  Ne7 {[%clk 0:02:50]} 8. Nc3 {[%clk 0:02:45]}  h6 {[%clk 0:02:49]} 9. Be3 {[%clk 0:02:43]}  Bg7 {[%clk 0:02:49]} 10. Qd2 {[%clk 0:02:43]}  g5 {[%clk 0:02:45]} 11. h4 {[%clk 0:02:37]}  Ng6 {[%clk 0:02:35]} 12. hxg5 {[%clk 0:02:34]}  hxg5 {[%clk 0:02:35]} 13. Bxg5 {[%clk 0:02:33]}  Bf6 {[%clk 0:02:35]} 14. Rfe1 {[%clk 0:02:30]}  Rh5 {[%clk 0:02:23]} 15. Be3 {[%clk 0:02:28]}  Qe7 {[%clk 0:02:20]} 16. Kf1 {[%clk 0:01:47]}  O-O-O {[%clk 0:02:18]} 17. Ke2 {[%clk 0:01:47]}  Rdh8 {[%clk 0:02:12]} 18. Kd1 {[%clk 0:01:42]}  Kb8 {[%clk 0:02:06]} 19. Kc2 {[%clk 0:01:42]}  c5 {[%clk 0:02:03]} 20. Be2 {[%clk 0:01:28]}  cxd4 {[%clk 0:01:58]} 21. Nxd4 {[%clk 0:01:28]}  Rc5 {[%clk 0:01:51]} 22. Ndb5 {[%clk 0:01:24]}  d5 {[%clk 0:01:19]} 23. exd5 {[%clk 0:01:21]}  exd5 {[%clk 0:01:10]} 24. Bxc5 {[%clk 0:01:13]}  Qxc5 {[%clk 0:01:07]} 25. Nxd5 {[%clk 0:01:11]}  Bg7 {[%clk 0:00:36]} 26. Rad1 {[%clk 0:01:10]}  a6 {[%clk 0:00:35]} 27. Nbc3 {[%clk 0:01:09]}  Nde5 {[%clk 0:00:34]} 28. Kb1 {[%clk 0:01:07]}  Nxc4 {[%clk 0:00:34]} 29. Bxc4 {[%clk 0:01:06]}  Qxc4 {[%clk 0:00:34]} 30. Nxb6 {[%clk 0:01:04]}  Qc6 {[%clk 0:00:26]} 31. Qd6+ {[%clk 0:00:43]}  Qxd6 {[%clk 0:00:26]} 32. Rxd6 {[%clk 0:00:44]}  Bxg2 {[%clk 0:00:26]} 33. Rd7 {[%clk 0:00:42]}  Ne5 {[%clk 0:00:22]} 34. Re7 {[%clk 0:00:37]}  Nc6 {[%clk 0:00:18]} 35. Rxf7 {[%clk 0:00:36]}  Bd4 {[%clk 0:00:18]} 36. a3 {[%clk 0:00:26]}  Bxb6 {[%clk 0:00:18]} 37. Re6 {[%clk 0:00:25]}  Rd8 {[%clk 0:00:17]} 38. Ka2 {[%clk 0:00:24]}  Bc7 {[%clk 0:00:15]} 39. Rg7 {[%clk 0:00:22]}  Bf3 {[%clk 0:00:15]} 40. Rh6 {[%clk 0:00:21]}  Be5 {[%clk 0:00:13]} 41. Rf7 {[%clk 0:00:21]}  Bg2 {[%clk 0:00:12]} 42. Rhh7 {[%clk 0:00:20]}  Bxc3 {[%clk 0:00:12]} 43. Rb7+ {[%clk 0:00:20]}  Ka8 {[%clk 0:00:11]} 44. bxc3 {[%clk 0:00:21]}  Bd5+ {[%clk 0:00:11]} 45. Kb2 {[%clk 0:00:21]}  Na5 {[%clk 0:00:11]} 46. Ra7+ {[%clk 0:00:20]}  Kb8 {[%clk 0:00:11]} 47. Rxa6 {[%clk 0:00:20]}  Nc4+ {[%clk 0:00:11]} 48. Kc1 {[%clk 0:00:21]}  Bb7 {[%clk 0:00:11]} 49. Rah6 {[%clk 0:00:20]}  Ne5 {[%clk 0:00:10]} 50. Rh8 {[%clk 0:00:20]}  Rxh8 {[%clk 0:00:09]} 51. Rxh8+ {[%clk 0:00:21]}  Kc7 {[%clk 0:00:10]} 52. Rh4 {[%clk 0:00:20]}  Kd6 {[%clk 0:00:10]} 53. Rd4+ {[%clk 0:00:20]}  Kc5 {[%clk 0:00:10]} 54. f4 {[%clk 0:00:20]}  Ng6 {[%clk 0:00:09]} 55. f5 {[%clk 0:00:20]}  Ne5 {[%clk 0:00:10]} 56. f6 {[%clk 0:00:20]}  Bd5 {[%clk 0:00:10]} 57. a4 {[%clk 0:00:19]}  Bc4 {[%clk 0:00:10]} 58. a5 {[%clk 0:00:19]}  Kb5 {[%clk 0:00:10]} 59. Rxc4 {[%clk 0:00:18]}  Kxc4 {[%clk 0:00:09]} 60. a6 {[%clk 0:00:19]}  Nd3+ {[%clk 0:00:07]} 61. Kd2 {[%clk 0:00:19]} 1-0


[Site "https://www.chess.com"]

[Event "Titled Tuesday Blitz August 09 Early 2022"]
[White "Lakshmi C"]
[Black "Rom, Jasper"]
[WhiteFideId "25035347"]
[BlackFideId "2023733"]
[WhiteElo "1775"]
[BlackElo "2233"]
[Result "0-1"]
[Round "04"]
[TimeControl "180+1"]
[Date "2022.08.09"]
[WhiteClock "0:00:05"]
[BlackClock "0:00:13"]

1. d4 {[%clk 0:03:00]}  d5 {[%clk 0:02:59]} 2. c4 {[%clk 0:02:57]}  e6 {[%clk 0:02:58]} 3. Nc3 {[%clk 0:02:35]}  c6 {[%clk 0:02:57]} 4. e3 {[%clk 0:02:29]}  Nf6 {[%clk 0:02:56]} 5. Nf3 {[%clk 0:02:29]}  Nbd7 {[%clk 0:02:56]} 6. b3 {[%clk 0:02:18]}  Bb4 {[%clk 0:02:53]} 7. Bd2 {[%clk 0:02:18]}  O-O {[%clk 0:02:48]} 8. Bd3 {[%clk 0:02:17]}  Re8 {[%clk 0:02:48]} 9. O-O {[%clk 0:02:14]}  dxc4 {[%clk 0:02:47]} 10. bxc4 {[%clk 0:02:13]}  e5 {[%clk 0:02:47]} 11. dxe5 {[%clk 0:01:50]}  Nxe5 {[%clk 0:02:44]} 12. Nxe5 {[%clk 0:01:50]}  Rxe5 {[%clk 0:02:43]} 13. Qc2 {[%clk 0:01:43]}  Bg4 {[%clk 0:02:25]} 14. Rab1 {[%clk 0:01:32]}  Qe7 {[%clk 0:02:17]} 15. f4 {[%clk 0:01:24]}  Rh5 {[%clk 0:01:54]} 16. h3 {[%clk 0:01:19]}  Be6 {[%clk 0:01:48]} 17. f5 {[%clk 0:01:05]}  Bd7 {[%clk 0:01:46]} 18. e4 {[%clk 0:01:02]}  Bc5+ {[%clk 0:01:43]} 19. Kh1 {[%clk 0:01:01]}  b6 {[%clk 0:01:35]} 20. Bf4 {[%clk 0:00:56]}  Bd6 {[%clk 0:01:23]} 21. e5 {[%clk 0:00:57]}  Bxe5 {[%clk 0:01:21]} 22. Rbe1 {[%clk 0:00:56]}  Ng4 {[%clk 0:01:19]} 23. f6 {[%clk 0:00:45]}  Nxf6 {[%clk 0:01:04]} 24. Be2 {[%clk 0:00:33]}  Rf5 {[%clk 0:01:02]} 25. Bd3 {[%clk 0:00:26]}  Rxf4 {[%clk 0:00:59]} 26. Rxf4 {[%clk 0:00:26]}  Qd6 {[%clk 0:00:59]} 27. Rff1 {[%clk 0:00:25]}  Be6 {[%clk 0:00:53]} 28. Ne4 {[%clk 0:00:24]}  Nxe4 {[%clk 0:00:52]} 29. Bxe4 {[%clk 0:00:24]}  g6 {[%clk 0:00:51]} 30. Bxc6 {[%clk 0:00:24]}  Rc8 {[%clk 0:00:43]} 31. Qe4 {[%clk 0:00:20]}  Bg3 {[%clk 0:00:33]} 32. Bd5 {[%clk 0:00:20]}  Bxe1 {[%clk 0:00:29]} 33. Bxe6 {[%clk 0:00:17]}  Qxe6 {[%clk 0:00:28]} 34. Qxe6 {[%clk 0:00:16]}  fxe6 {[%clk 0:00:27]} 35. Rxe1 {[%clk 0:00:17]}  Kf7 {[%clk 0:00:27]} 36. Re4 {[%clk 0:00:17]}  Kf6 {[%clk 0:00:26]} 37. Kg1 {[%clk 0:00:16]}  e5 {[%clk 0:00:24]} 38. Kf2 {[%clk 0:00:15]}  Kf5 {[%clk 0:00:20]} 39. Ke3 {[%clk 0:00:16]}  h5 {[%clk 0:00:19]} 40. g4+ {[%clk 0:00:15]}  hxg4 {[%clk 0:00:19]} 41. hxg4+ {[%clk 0:00:15]}  Ke6 {[%clk 0:00:18]} 42. Kd3 {[%clk 0:00:10]}  Rd8+ {[%clk 0:00:17]} 43. Kc3 {[%clk 0:00:10]}  Rf8 {[%clk 0:00:17]} 44. Kd3 {[%clk 0:00:09]}  Rf3+ {[%clk 0:00:16]} 45. Ke2 {[%clk 0:00:09]}  Rf4 {[%clk 0:00:16]} 46. Rxf4 {[%clk 0:00:07]}  exf4 {[%clk 0:00:16]} 47. a4 {[%clk 0:00:04]}  Ke5 {[%clk 0:00:15]} 48. Kf3 {[%clk 0:00:04]}  g5 {[%clk 0:00:15]} 49. a5 {[%clk 0:00:05]}  bxa5 {[%clk 0:00:13]} 50. c5 {[%clk 0:00:05]}  a4 {[%clk 0:00:13]} 0-1


[Site "https://www.chess.com"]

[Event "Titled Tuesday Blitz August 09 Early 2022"]
[White "Levitskiy, Andrey"]
[Black "Flynn, Jacob"]
[WhiteFideId "14132885"]
[BlackFideId "2509393"]
[WhiteElo "2293"]
[BlackElo "1920"]
[Result "1-0"]
[Round "04"]
[TimeControl "180+1"]
[Date "2022.08.09"]
[WhiteClock "0:00:50"]
[BlackClock "0:00:34"]

1. e4 {[%clk 0:03:00]}  e5 {[%clk 0:02:52]} 2. Nf3 {[%clk 0:03:01]}  Nc6 {[%clk 0:02:50]} 3. Bc4 {[%clk 0:03:01]}  Nf6 {[%clk 0:02:44]} 4. Ng5 {[%clk 0:03:01]}  d5 {[%clk 0:02:41]} 5. exd5 {[%clk 0:03:01]}  Na5 {[%clk 0:02:39]} 6. Bb5+ {[%clk 0:03:02]}  c6 {[%clk 0:02:40]} 7. dxc6 {[%clk 0:03:03]}  bxc6 {[%clk 0:02:40]} 8. Bd3 {[%clk 0:03:04]}  Nd5 {[%clk 0:02:39]} 9. Nf3 {[%clk 0:03:04]}  Bd6 {[%clk 0:02:39]} 10. O-O {[%clk 0:03:04]}  O-O {[%clk 0:02:38]} 11. Re1 {[%clk 0:03:05]}  f5 {[%clk 0:02:38]} 12. Nxe5 {[%clk 0:03:05]}  Qf6 {[%clk 0:02:39]} 13. Nf3 {[%clk 0:03:05]}  g5 {[%clk 0:02:33]} 14. g3 {[%clk 0:03:06]}  f4 {[%clk 0:02:28]} 15. Nc3 {[%clk 0:03:06]}  fxg3 {[%clk 0:02:19]} 16. hxg3 {[%clk 0:03:07]}  Qxf3 {[%clk 0:02:16]} 17. Qxf3 {[%clk 0:03:07]}  Rxf3 {[%clk 0:02:15]} 18. Be4 {[%clk 0:03:08]}  Rf5 {[%clk 0:01:37]} 19. Bxf5 {[%clk 0:02:03]}  Bxf5 {[%clk 0:01:36]} 20. Ne4 {[%clk 0:02:03]}  Be7 {[%clk 0:01:22]} 21. d3 {[%clk 0:02:00]}  h6 {[%clk 0:01:22]} 22. Bd2 {[%clk 0:01:57]}  Nb7 {[%clk 0:01:19]} 23. c4 {[%clk 0:01:55]}  Nf6 {[%clk 0:01:10]} 24. Nxg5 {[%clk 0:01:51]}  Bc5 {[%clk 0:01:11]} 25. Ne6 {[%clk 0:01:47]}  Bb6 {[%clk 0:01:06]} 26. d4 {[%clk 0:01:43]}  Bxe6 {[%clk 0:01:02]} 27. Rxe6 {[%clk 0:01:42]}  Bxd4 {[%clk 0:01:03]} 28. Be3 {[%clk 0:01:31]}  Bxe3 {[%clk 0:00:59]} 29. fxe3 {[%clk 0:01:29]}  Kf7 {[%clk 0:00:54]} 30. Rxc6 {[%clk 0:01:28]}  Nd8 {[%clk 0:00:53]} 31. Rd6 {[%clk 0:01:22]}  Ke7 {[%clk 0:00:54]} 32. Rad1 {[%clk 0:01:15]}  Nf7 {[%clk 0:00:54]} 33. Ra6 {[%clk 0:01:12]}  Ne5 {[%clk 0:00:49]} 34. b3 {[%clk 0:01:04]}  Nfg4 {[%clk 0:00:47]} 35. Rd5 {[%clk 0:01:00]}  Nf3+ {[%clk 0:00:43]} 36. Kh1 {[%clk 0:00:53]}  Nxe3 {[%clk 0:00:34]} 37. Rd3 {[%clk 0:00:50]} 1-0


[Site "https://www.chess.com"]

[Event "Titled Tuesday Blitz August 09 Early 2022"]
[White "Ljukin, Sergei"]
[Black "Eynullayev, Atilla"]
[WhiteFideId "14102200"]
[BlackFideId "13413570"]
[WhiteElo "2312"]
[BlackElo "1936"]
[Result "0-1"]
[Round "04"]
[TimeControl "180+1"]
[Date "2022.08.09"]
[WhiteClock "0:00:07"]
[BlackClock "0:00:33"]

1. e4 {[%clk 0:02:57]}  c5 {[%clk 0:02:59]} 2. Nf3 {[%clk 0:02:57]}  d6 {[%clk 0:02:59]} 3. d4 {[%clk 0:02:57]}  cxd4 {[%clk 0:02:59]} 4. Nxd4 {[%clk 0:02:57]}  Nf6 {[%clk 0:03:00]} 5. Nc3 {[%clk 0:02:58]}  a6 {[%clk 0:03:01]} 6. Bg5 {[%clk 0:02:58]}  Nbd7 {[%clk 0:03:00]} 7. f4 {[%clk 0:02:57]}  Qc7 {[%clk 0:03:00]} 8. Qf3 {[%clk 0:02:46]}  h6 {[%clk 0:02:59]} 9. Bxf6 {[%clk 0:02:43]}  Nxf6 {[%clk 0:02:59]} 10. f5 {[%clk 0:02:44]}  Qc5 {[%clk 0:03:00]} 11. O-O-O {[%clk 0:02:43]}  g5 {[%clk 0:03:01]} 12. g4 {[%clk 0:02:25]}  Bg7 {[%clk 0:02:49]} 13. h4 {[%clk 0:02:14]}  Qe5 {[%clk 0:02:37]} 14. Nd5 {[%clk 0:01:29]}  Nxd5 {[%clk 0:02:23]} 15. exd5 {[%clk 0:01:29]}  Bd7 {[%clk 0:02:19]} 16. Bg2 {[%clk 0:01:19]}  O-O-O {[%clk 0:02:18]} 17. Rhe1 {[%clk 0:01:16]}  Qf6 {[%clk 0:02:17]} 18. hxg5 {[%clk 0:01:06]}  hxg5 {[%clk 0:02:16]} 19. Rd3 {[%clk 0:01:03]}  Bb5 {[%clk 0:02:02]} 20. Rc3+ {[%clk 0:00:50]}  Kb8 {[%clk 0:02:02]} 21. Re4 {[%clk 0:00:47]}  Rc8 {[%clk 0:02:00]} 22. Rb3 {[%clk 0:00:47]}  Rc5 {[%clk 0:01:10]} 23. a4 {[%clk 0:00:37]}  Bc4 {[%clk 0:01:02]} 24. Nc6+ {[%clk 0:00:19]}  Ka8 {[%clk 0:00:42]} 25. Rxb7 {[%clk 0:00:18]}  Kxb7 {[%clk 0:00:42]} 26. Rxe7+ {[%clk 0:00:15]}  Kc8 {[%clk 0:00:39]} 27. c3 {[%clk 0:00:10]}  Rxc6 {[%clk 0:00:37]} 28. dxc6 {[%clk 0:00:09]}  Qxe7 {[%clk 0:00:38]} 29. Qf2 {[%clk 0:00:07]}  Be5 {[%clk 0:00:33]} 0-1


[Site "https://www.chess.com"]

[Event "Titled Tuesday Blitz August 09 Early 2022"]
[White "Locci, Damiano"]
[Black "Rose, Felix"]
[WhiteFideId "819751"]
[BlackFideId "5105722"]
[WhiteElo "2435"]
[BlackElo "2039"]
[Result "0-1"]
[Round "04"]
[TimeControl "180+1"]
[Date "2022.08.09"]
[WhiteClock "0:00:03"]
[BlackClock "0:00:11"]

1. c4 {[%clk 0:02:56]}  e6 {[%clk 0:02:59]} 2. d4 {[%clk 0:02:55]}  d5 {[%clk 0:03:00]} 3. Nc3 {[%clk 0:02:55]}  Nf6 {[%clk 0:03:00]} 4. Bg5 {[%clk 0:02:55]}  Be7 {[%clk 0:03:00]} 5. Nf3 {[%clk 0:02:53]}  Nbd7 {[%clk 0:03:00]} 6. e3 {[%clk 0:02:53]}  h6 {[%clk 0:03:00]} 7. Bh4 {[%clk 0:02:51]}  O-O {[%clk 0:03:01]} 8. Rc1 {[%clk 0:02:50]}  c5 {[%clk 0:03:00]} 9. cxd5 {[%clk 0:02:43]}  cxd4 {[%clk 0:02:47]} 10. Nxd4 {[%clk 0:02:37]}  Nxd5 {[%clk 0:02:46]} 11. Bxe7 {[%clk 0:02:35]}  Nxe7 {[%clk 0:02:43]} 12. Bd3 {[%clk 0:02:35]}  Ne5 {[%clk 0:02:43]} 13. Bb1 {[%clk 0:02:34]}  Bd7 {[%clk 0:02:39]} 14. O-O {[%clk 0:02:32]}  Qb6 {[%clk 0:02:33]} 15. Qh5 {[%clk 0:02:26]}  N5c6 {[%clk 0:02:07]} 16. Nf3 {[%clk 0:01:57]}  Rfd8 {[%clk 0:01:59]} 17. b3 {[%clk 0:01:53]}  Qa5 {[%clk 0:01:43]} 18. Qh4 {[%clk 0:01:34]}  Nf5 {[%clk 0:01:27]} 19. Qe4 {[%clk 0:01:32]}  Nce7 {[%clk 0:01:08]} 20. Ne5 {[%clk 0:01:14]}  Rac8 {[%clk 0:00:41]} 21. g4 {[%clk 0:01:11]}  Rxc3 {[%clk 0:00:36]} 22. gxf5 {[%clk 0:00:42]}  Nxf5 {[%clk 0:00:33]} 23. Rxc3 {[%clk 0:00:23]}  Qxc3 {[%clk 0:00:32]} 24. Rd1 {[%clk 0:00:24]}  Qc7 {[%clk 0:00:12]} 25. f4 {[%clk 0:00:18]}  Bc6 {[%clk 0:00:10]} 26. Rxd8+ {[%clk 0:00:17]}  Qxd8 {[%clk 0:00:11]} 27. Nxc6 {[%clk 0:00:18]}  bxc6 {[%clk 0:00:11]} 28. Bd3 {[%clk 0:00:16]}  c5 {[%clk 0:00:11]} 29. Kf2 {[%clk 0:00:16]}  Qh4+ {[%clk 0:00:11]} 30. Kg1 {[%clk 0:00:13]}  Qh3 {[%clk 0:00:10]} 31. Bf1 {[%clk 0:00:12]}  Qxe3+ {[%clk 0:00:11]} 32. Qxe3 {[%clk 0:00:13]}  Nxe3 {[%clk 0:00:12]} 33. Bd3 {[%clk 0:00:13]}  Nd5 {[%clk 0:00:11]} 34. f5 {[%clk 0:00:12]}  exf5 {[%clk 0:00:11]} 35. Bxf5 {[%clk 0:00:13]}  Kf8 {[%clk 0:00:11]} 36. Be4 {[%clk 0:00:14]}  Nc3 {[%clk 0:00:11]} 37. Bf3 {[%clk 0:00:11]}  Nxa2 {[%clk 0:00:11]} 38. Kf2 {[%clk 0:00:11]}  Ke7 {[%clk 0:00:09]} 39. Ke3 {[%clk 0:00:12]}  Kd6 {[%clk 0:00:10]} 40. Bh5 {[%clk 0:00:12]}  a5 {[%clk 0:00:10]} 41. Bxf7 {[%clk 0:00:12]}  Nb4 {[%clk 0:00:10]} 42. Kf4 {[%clk 0:00:12]}  Ke7 {[%clk 0:00:10]} 43. Bc4 {[%clk 0:00:11]}  Kf6 {[%clk 0:00:11]} 44. Ke4 {[%clk 0:00:11]}  g5 {[%clk 0:00:10]} 45. Kf3 {[%clk 0:00:10]}  h5 {[%clk 0:00:10]} 46. Kg3 {[%clk 0:00:08]}  Kf5 {[%clk 0:00:11]} 47. Kf3 {[%clk 0:00:08]}  h4 {[%clk 0:00:10]} 48. Bb5 {[%clk 0:00:06]}  g4+ {[%clk 0:00:10]} 49. Ke3 {[%clk 0:00:05]}  Ke5 {[%clk 0:00:10]} 50. Bd7 {[%clk 0:00:05]}  g3 {[%clk 0:00:11]} 51. hxg3 {[%clk 0:00:06]}  hxg3 {[%clk 0:00:11]} 52. Kf3 {[%clk 0:00:05]}  Kd4 {[%clk 0:00:12]} 53. Kxg3 {[%clk 0:00:05]}  Kc3 {[%clk 0:00:12]} 54. Be6 {[%clk 0:00:06]}  Nd3 {[%clk 0:00:12]} 55. Bg8 {[%clk 0:00:03]}  Nc1 {[%clk 0:00:13]} 56. Kf3 {[%clk 0:00:02]}  Nxb3 {[%clk 0:00:13]} 57. Ke2 {[%clk 0:00:03]}  a4 {[%clk 0:00:12]} 58. Kd1 {[%clk 0:00:03]}  a3 {[%clk 0:00:11]} 0-1


[Site "https://www.chess.com"]

[Event "Titled Tuesday Blitz August 09 Early 2022"]
[White "Mahalakshmi, M"]
[Black "Pulpan, Jakub"]
[WhiteFideId "5001080"]
[BlackFideId "302759"]
[WhiteElo "2176"]
[BlackElo "2451"]
[Result "0-1"]
[Round "04"]
[TimeControl "180+1"]
[Date "2022.08.09"]
[WhiteClock "0:00:07"]
[BlackClock "0:00:10"]

1. d4 {[%clk 0:03:00]}  Nf6 {[%clk 0:02:59]} 2. c4 {[%clk 0:03:01]}  e6 {[%clk 0:02:58]} 3. Nc3 {[%clk 0:03:00]}  d5 {[%clk 0:02:58]} 4. Nf3 {[%clk 0:02:59]}  c5 {[%clk 0:02:57]} 5. cxd5 {[%clk 0:02:57]}  Nxd5 {[%clk 0:02:58]} 6. g3 {[%clk 0:02:55]}  Nc6 {[%clk 0:02:52]} 7. dxc5 {[%clk 0:02:48]}  Bxc5 {[%clk 0:02:50]} 8. Nxd5 {[%clk 0:02:47]}  exd5 {[%clk 0:02:49]} 9. Bg2 {[%clk 0:02:46]}  O-O {[%clk 0:02:49]} 10. O-O {[%clk 0:02:47]}  h6 {[%clk 0:02:50]} 11. Bf4 {[%clk 0:02:43]}  Re8 {[%clk 0:02:49]} 12. Rc1 {[%clk 0:02:28]}  Bb6 {[%clk 0:02:48]} 13. h4 {[%clk 0:02:19]}  Bg4 {[%clk 0:02:41]} 14. Re1 {[%clk 0:02:14]}  Qf6 {[%clk 0:02:28]} 15. Qxd5 {[%clk 0:01:52]}  Qxb2 {[%clk 0:02:27]} 16. e3 {[%clk 0:01:42]}  Nb4 {[%clk 0:02:22]} 17. Qb5 {[%clk 0:01:22]}  Qxa2 {[%clk 0:01:33]} 18. Qxb4 {[%clk 0:01:17]}  Ba5 {[%clk 0:01:33]} 19. Qxb7 {[%clk 0:01:12]}  Bxe1 {[%clk 0:01:33]} 20. Rxe1 {[%clk 0:01:12]}  a5 {[%clk 0:01:25]} 21. Nd4 {[%clk 0:01:13]}  Rad8 {[%clk 0:01:19]} 22. Bc6 {[%clk 0:01:00]}  Rf8 {[%clk 0:01:12]} 23. Bc7 {[%clk 0:00:55]}  Rc8 {[%clk 0:01:04]} 24. Bd6 {[%clk 0:00:50]}  Rfd8 {[%clk 0:01:01]} 25. Be7 {[%clk 0:00:35]}  Rb8 {[%clk 0:00:47]} 26. Qc7 {[%clk 0:00:27]}  Rdc8 {[%clk 0:00:46]} 27. Qf4 {[%clk 0:00:27]}  Be6 {[%clk 0:00:39]} 28. Bd6 {[%clk 0:00:20]}  Rb6 {[%clk 0:00:30]} 29. Be4 {[%clk 0:00:19]}  Qd2 {[%clk 0:00:26]} 30. Rf1 {[%clk 0:00:14]}  a4 {[%clk 0:00:24]} 31. Nxe6 {[%clk 0:00:12]}  Qxd6 {[%clk 0:00:22]} 32. Nd4 {[%clk 0:00:10]}  Qxf4 {[%clk 0:00:18]} 33. gxf4 {[%clk 0:00:10]}  a3 {[%clk 0:00:19]} 34. Ra1 {[%clk 0:00:09]}  Rc3 {[%clk 0:00:20]} 35. Ne2 {[%clk 0:00:08]}  Rcb3 {[%clk 0:00:19]} 36. Nd4 {[%clk 0:00:09]}  Rc3 {[%clk 0:00:16]} 37. Ne2 {[%clk 0:00:09]}  Rc4 {[%clk 0:00:16]} 38. Bd3 {[%clk 0:00:08]}  Ra4 {[%clk 0:00:16]} 39. Re1 {[%clk 0:00:08]}  a2 {[%clk 0:00:16]} 40. Ra1 {[%clk 0:00:08]}  Rb2 {[%clk 0:00:16]} 41. Nc3 {[%clk 0:00:08]}  Ra3 {[%clk 0:00:16]} 42. Nxa2 {[%clk 0:00:06]}  Rbxa2 {[%clk 0:00:15]} 43. Rd1 {[%clk 0:00:07]}  Ra1 {[%clk 0:00:15]} 44. Rxa1 {[%clk 0:00:04]}  Rxa1+ {[%clk 0:00:15]} 45. Kg2 {[%clk 0:00:04]}  g6 {[%clk 0:00:14]} 46. Be4 {[%clk 0:00:05]}  Kg7 {[%clk 0:00:14]} 47. f5 {[%clk 0:00:05]}  g5 {[%clk 0:00:13]} 48. hxg5 {[%clk 0:00:05]}  hxg5 {[%clk 0:00:14]} 49. Kf3 {[%clk 0:00:06]}  Kf6 {[%clk 0:00:14]} 50. Bd3 {[%clk 0:00:06]}  Ke5 {[%clk 0:00:14]} 51. Kg4 {[%clk 0:00:06]}  Rg1+ {[%clk 0:00:13]} 52. Kh5 {[%clk 0:00:04]}  Rg2 {[%clk 0:00:12]} 53. f3 {[%clk 0:00:04]}  Rg3 {[%clk 0:00:12]} 54. Be4 {[%clk 0:00:04]}  g4 {[%clk 0:00:07]} 55. Kh4 {[%clk 0:00:04]}  Rxf3 {[%clk 0:00:05]} 56. Bxf3 {[%clk 0:00:04]}  gxf3 {[%clk 0:00:06]} 57. Kg3 {[%clk 0:00:04]}  Ke4 {[%clk 0:00:06]} 58. Kf2 {[%clk 0:00:05]}  f6 {[%clk 0:00:07]} 59. Kf1 {[%clk 0:00:05]}  Kxf5 {[%clk 0:00:05]} 60. Kf2 {[%clk 0:00:04]}  Ke4 {[%clk 0:00:06]} 61. Kf1 {[%clk 0:00:04]}  Kxe3 {[%clk 0:00:07]} 62. Ke1 {[%clk 0:00:05]}  f2+ {[%clk 0:00:07]} 63. Kf1 {[%clk 0:00:06]}  f5 {[%clk 0:00:08]} 64. Kg2 {[%clk 0:00:06]}  Ke2 {[%clk 0:00:09]} 65. Kg3 {[%clk 0:00:07]}  f1=Q {[%clk 0:00:10]} 0-1


[Site "https://www.chess.com"]